Cogmind - Beta 13 *** ADVENTURER MODE // 2024.04.22 @ 17:13:15 Player: xerxia Result: Destroyed by G-34 Mercenary with Small Laser Performance ------------- Evolutions (1) 500 Regions Visited (2) 400 Robots Destroyed (25) 125 Value Destroyed (729) 729 Prototype IDs (3) 60 Alien Tech Used (0) 0 Bonus (0) 0 TOTAL SCORE: 1814 Bonus ------- None Cogmind --------- Core Integrity 0/400 Matter 290/300 Energy 430/430 System Corruption 6% Temperature Cool (33) Movement Walking (200) Ox1 Location -9/Materials Parts ------- > --- POWER (2) -------- Improved Ion Engine Improved Ion Engine > --- PROPULSION (3) --- Titanium Leg Titanium Leg Titanium Leg > --- UTILITY (2) ------ Huge Storage Unit Light Armor Plating > --- WEAPON (2) ------- Light Assault Rifle Minigun > --- INVENTORY (25) --- Improved Ion Engine Improved Ion Engine Improved Ion Engine Improved Ion Engine Improved Aluminum Leg Hover Unit Airjet Airjet Airjet Airjet Flight Unit Flight Unit Flight Unit Flight Unit Flight Unit Heat Sink Heat Sink Large Storage Unit Large Storage Unit Huge Storage Unit Huge Storage Unit Light Assault Rifle Minigun Minigun Peak State ------------ > --- POWER ------------ Improved Ion Engine Improved Ion Engine > --- PROPULSION ------- Titanium Leg Titanium Leg Titanium Leg > --- UTILITY ---------- Huge Storage Unit Light Armor Plating > --- WEAPON ----------- Improved EM Shotgun Minigun > --- INVENTORY -------- Improved Ion Engine Improved Ion Engine Improved Ion Engine Improved Ion Engine Improved Aluminum Leg Hover Unit Airjet Airjet Airjet Airjet Flight Unit Flight Unit Flight Unit Flight Unit Flight Unit Heat Sink Heat Sink Large Storage Unit Large Storage Unit Huge Storage Unit Huge Storage Unit Light Assault Rifle Light Assault Rifle Minigun Minigun [Rating: 25] Favorites ----------- Power Improved Ion Engine Engine Improved Ion Engine Propulsion Titanium Leg Treads Light Treads Leg Titanium Leg Utility Large Storage Unit Storage Large Storage Unit Processor Melee Analysis Suite Protection Light Armor Plating Weapon Minigun Energy Gun EM Pulse Gun Ballistic Gun Minigun Launcher Grenade Launcher Slashing Weapon Katana Build | -11 -10 -9 ------- Run | Yrd Mat Mat Slots Evolved 2 | . . 2 Power 1 | . . 1 Propulsion 1 | . . 1 Utility . | . . . Weapon . | . . . Parts Attached 30 | 5 2 23 Power 7 | 1 . 6 Engine 7 | 1 . 6 Core . | . . . Reactor . | . . . Propulsion 5 | 2 . 3 Treads 2 | 2 . . Leg 3 | . . 3 Wheel . | . . . Hover . | . . . Flight . | . . . Utility 7 | 1 1 5 Device . | . . . Storage 5 | 1 1 3 Processor 1 | . . 1 Hackware . | . . . Protection 1 | . . 1 Artifact . | . . . Weapon 11 | 1 1 9 Energy Gun 3 | 1 . 2 Energy Cannon . | . . . Ballistic Gun 6 | . 1 5 Ballistic Cannon . | . . . Launcher 1 | . . 1 Special Weapon . | . . . Impact Weapon . | . . . Slashing Weapon 1 | . . 1 Piercing Weapon . | . . . Special Melee Weapon . | . . . Unidentified Prototypes 1 | . . 1 Parts Lost 11 | . . 11 Power 2 | . . 2 Propulsion 2 | . . 2 Utility 1 | . . 1 Weapon 6 | . . 6 Highest Loss Streak 10 | . . 10 To Critical Strikes . | . . . Average Slot Usage (%) 83 | . 91 80 Engine 17 | . 14 18 Treads 9 | . 28 4 Leg 19 | . . 24 Storage 14 | . 26 11 Protection 1 | . . 2 Energy Gun 3 | . 14 . Ballistic Gun 14 | . 7 16 Naked Turns . | . . . Heaviest Build 101 | 12 33 101 Greatest Support 51 | 40 40 51 Greatest Overweight (x) 8 | . . 8 Average Overweight (x) . | . . . Largest Inventory Capacity 25 | 8 15 25 Average Capacity 18 | 7 14 20 Most Carried 25 | 4 6 25 Average Carried 11 | 2 4 14 Final Capacity 25 | 8 15 25 Final Carried 24 | 3 6 24 Class Distribution -------------------- 100% | Mutant Dominant Class ---------------- Mutant | -10/Materials Mutant | -9/Materials Resources | -11 -10 -9 ----------- Run | Yrd Mat Mat Matter Collected 753 | 215 60 478 Remotely . | . . . Salvage Created 898 | . 60 838 Parts 58 | . 2 56 Haulers Intercepted . | . . . Recyclers Shooed . | . . . Parts Field Recycled . | . . . Retrieved Matter . | . . . Parts Self-Destructed . | . . . Prevented . | . . . Kills | -11 -10 -9 ------- Run | Yrd Mat Mat Combat Hostiles Destroyed 23 | . 1 22 Guns 21 | . 1 20 AOE 2 | . . 2 Classes Destroyed 7 | . 1 6 Builder 1 | . . 1 Watcher 1 | . . 1 Swarmer 7 | . . 7 Grunt 8 | . 1 7 Brawler 1 | . . 1 Duelist 1 | . . 1 Sentry 6 | . . 6 Best Kill Streak 7 | . 1 7 Combat Bots Only 7 | . 1 7 Max Kills in Single Turn 2 | . 1 2 Gunslinging . | . . . Exploded 1 | . . 1 Melee . | . . . Uniques/NPCs Destroyed . | . . . Combat | -11 -10 -9 -------- Run | Yrd Mat Mat Hostile Shots Fired 212 | . 15 197 Missed 55 | . 5 50 Damage Taken 1654 | . 116 1538 Core 423 | . 20 403 Absorbed by Shields . | . . . Ignored by Resistances 486 | . 35 451 Core Remaining (%) 96 | 100 92 . Volleys Fired 74 | . 9 65 Largest 2 | . 2 2 Hottest 60 | . 60 60 Shots Fired 107 | . 18 89 Gun 105 | . 18 87 Cannon . | . . . Launcher 2 | . . 2 Special . | . . . Kinetic 87 | . 9 78 Thermal . | . . . Explosive 2 | . . 2 Electromagnetic 18 | . 9 9 Robot Hit Streak 20 | . 10 20 Robot Miss Streak 1 | . 1 1 Penetration Max . | . . . Secondary Targets 2 | . . 2 Max Gunslinging Chain 1 | . . 1 Shots Hit Robots 101 | . 15 86 Core Hits 43 | . 3 40 Critical Kills . | . . . Critical Parts Destroyed . | . . . Critical Strikes 1 | . . 1 Sever 1 | . . 1 Melee Attacks 5 | . . 5 Impact . | . . . Slashing 5 | . . 5 Piercing . | . . . Sneak Attacks . | . . . Combat Hostiles . | . . . Follow-up Attacks . | . . . Damage Inflicted 1635 | . 166 1469 Guns 1226 | . 166 1060 Cannons . | . . . Explosions 263 | . . 263 Melee 146 | . . 146 Ramming . | . . . Kinetic 1031 | . 82 949 Thermal 60 | . . 60 Explosive 203 | . . 203 Electromagnetic 195 | . 84 111 Impact . | . . . Slashing 146 | . . 146 Piercing . | . . . Highest Corruption 6 | . . 6 Average Corruption 5 | . . 5 Corruption Purged . | . . . Corruption Blocked . | . . . Effects 16 | . . 16 Message Errors 7 | . . 7 Matter Fused 5 | . . 5 Data Loss (minor) 2 | . . 2 Data Loss (major) 2 | . . 2 Overload Shots . | . . . Overflow Damage 18 | . . 18 Projectiles . | . . . Explosions 1 | . . 1 Melee 17 | . . 17 Knockbacks . | . . . Impact . | . . . Kinetic . | . . . Secondary . | . . . Self-Inflicted Damage 62 | . . 62 Shots 3 | . . 3 Rammed . | . . . Targets Rammed . | . . . Kicked . | . . . Crushed . | . . . Highest Temperature 103 | . 103 77 Average Temperature 29 | . 52 23 Received Heat Transfer 729 | . 87 642 Siege Activations . | . . . Robots Corrupted . | . . . Combat Hostiles . | . . . Parts Fried . | . . . Impact Corruptions . | . . . Robots Melted . | . . . Combat Hostiles . | . . . Parts Melted . | . . . Heat Transferred 100 | . . 100 Parts Sabotaged . | . . . Parts Stolen . | . . . Parts Stripped . | . . . Power Chain Reactions 1 | . . 1 Alert | -11 -10 -9 ------- Run | Yrd Mat Mat Peak Influence 318 | . 70 318 Initial 25 | . . 25 Average 118 | . 17 150 Maximum Alert Level 1 | . . 1 Low Security (%) 79 | 100 100 72 Level 1 20 | . . 27 Level 2 . | . . . Level 3 . | . . . Level 4 . | . . . Level 5 . | . . . High Security . | . . . Max Security . | . . . Squads Dispatched 2 | . . 2 Investigation . | . . . Extermination . | . . . Reinforcement 2 | . . 2 Assault . | . . . Garrison . | . . . Intercept . | . . . Searches Triggered . | . . . Construction Impeded . | . . . Haulers Reinforced . | . . . Active Scanning Responses . | . . . Cargo Convoy Interrupts . | . . . Stealth | -11 -10 -9 --------- Run | Yrd Mat Mat Distress Signals 1 | . . 1 Communications Jammed . | . . . Distress Signals . | . . . Times Spotted 36 | . 6 30 Peak Tracking Total 7 | . 3 7 Tactical Retreats 3 | . 1 2 Traps | -11 -10 -9 ------- Run | Yrd Mat Mat Traps Triggered 2 | . . 2 Indirectly . | . . . Trap Hack Attempts . | . . . Triggered . | . . . Disarmed . | . . . Reprogrammed . | . . . Reused . | . . . Traps Extracted . | . . . Installed . | . . . Triggered . | . . . Machines | -11 -10 -9 ---------- Run | Yrd Mat Mat Machines Disabled . | . . . Max in Single Turn . | . . . Machines Repaired . | . . . Machines Dismantled . | . . . Machines Sabotaged . | . . . Overloaded Fab Kills . | . . . Hacking | -11 -10 -9 --------- Run | Yrd Mat Mat Machines Accessed 5 | . 2 3 Terminals 5 | . 2 3 Fabricators . | . . . Repair Stations . | . . . Recycling Units . | . . . Scanalyzers . | . . . Garrison Access . | . . . Total Hacks 15 | . 8 7 Successful 8 | . 4 4 Failed 7 | . 4 3 Catastrophic 3 | . 1 2 Database Lockouts . | . . . Manual 4 | . 1 3 Terminals 15 | . 8 7 Fabricators . | . . . Repair Stations . | . . . Recycling Units . | . . . Scanalyzers . | . . . Garrison Access . | . . . Terminal Hacks 8 | . 4 4 Record 1 | . 1 . Prototype ID Bank 1 | . 1 . Level Access Points 1 | . . 1 Branch Access Points 1 | . 1 . Locate Traps 1 | . 1 . Recall Investigation 1 | . . 1 Zone Layout 2 | . . 2 Fabricator Hacks . | . . . Repair Station Hacks . | . . . Recycling Unit Hacks . | . . . Scanalyzer . | . . . Garrison Access Hacks . | . . . Unauthorized Hacks . | . . . Terminals . | . . . Fabricators . | . . . Repair Stations . | . . . Recycling Units . | . . . Scanalyzers . | . . . Garrison Access . | . . . Data Cores Recovered . | . . . Used . | . . . Hacking Detections 3 | . 1 2 Full Trace Events 2 | . 1 1 Feedback Events . | . . . Feedback Blocked . | . . . Robot Schematics Acquired . | . . . Robots Built . | . . . Authchips . | . . . Time . | . . . Total Robot Build Rating . | . . . Part Schematics Acquired . | . . . Parts Built . | . . . Authchips . | . . . Time . | . . . Total Part Build Rating . | . . . Parts Repaired . | . . . Time . | . . . Parts Recycled . | . . . Recycled Matter . | . . . Retrieved Matter . | . . . Retrieved Components . | . . . Parts Scanalyzed . | . . . Part Schematics Acquired . | . . . Parts Damaged . | . . . Bothacking | -11 -10 -9 ------------ Run | Yrd Mat Mat Used RIF Installer . | . . . Robots Hacked . | . . . Non-combat . | . . . Combat . | . . . Robot Hacks Applied . | . . . Relay Couplers Released . | . . . Fabnet Peak Effective % . | . . . Robots Rewired . | . . . Allies Hacked . | . . . Hacks Repelled . | . . . Allies | -11 -10 -9 -------- Run | Yrd Mat Mat Total Allies . | . . . Largest Group . | . . . Highest-Rated Group . | . . . Highest-Rated Ally . | . . . Total Orders . | . . . Ally Attacks . | . . . Total Damage . | . . . Kills . | . . . Allies Corrupted . | . . . Allies Melted . | . . . Intel | -11 -10 -9 ------- Run | Yrd Mat Mat Robot Analysis Total . | . . . Derelict Logs Recovered . | . . . Drone Launches . | . . . Drone Recoveries . | . . . Exploration | -11 -10 -9 ------------- Run | Yrd Mat Mat Turns Passed 1212 | 55 236 921 Spaces Moved 529 | 29 118 382 Core 7 | 4 . 3 Treads 228 | 25 118 85 Legs 294 | . . 294 Wheels . | . . . Hover . | . . . Flight . | . . . Fastest Speed 50 | 50 160 50 Average Speed 171 | 144 160 177 Slowest Speed 450 | 160 160 450 Overloaded Moves . | . . . Propulsion Burnouts . | . . . Robots Hopped . | . . . Cave-ins Triggered . | . . . Exploration Rate (%) 21 | 4 34 26 Regions Visited 2 Branch Regions . Pre-discovered Areas . | . . . Known Exits Taken . | . . . Unknown Exits Taken 2 | 1 1 . Scrap Searched . | . . . Spaces Dug . | . . . Terrain Destroyed 15 | . . 15 Melee . | . . . Projectile . | . . . AOE 15 | . . 15 Terrain Rammed . | . . . Walls Destroyed . | . . . Machines Disabled . | . . . Actions | -11 -10 -9 --------- Run | Yrd Mat Mat Total 736 | 42 149 545 Wait 47 | 1 16 30 Move 527 | 28 117 382 Hop . | . . . Pick Up 48 | 8 5 35 Fast Attach . | . . . Attach 25 | 5 2 18 Detach 2 | . . 2 Swap 5 | . . 5 Drop 3 | . . 3 Fire 74 | . 9 65 Melee 5 | . . 5 Ram . | . . . Kick . | . . . Crush . | . . . Escape Stasis . | . . . Rewire . | . . . Trap . | . . . Miscellaneous . | . . . Route ------- -11/Scrapyard -10/Materials (discovered 3 exits: *Mat / *Min x2) -9/Materials (discovered 3 exits: *Mat x3) History --------- Turn | Location | Event 5 | -11/Scrapyard | Discovered new exit (range 15) 56 | -11/Scrapyard | Entered Materials 145 | -10/Materials | Identified exit to Mines 281 | -10/Materials | Discovered new exit (range 8) 292 | -10/Materials | Entered another Materials area 292 | -9/Materials | Evolved 2 slots: Power x1, Propulsion x1 313 | -9/Materials | Build established: Mutant 497 | -9/Materials | Core integrity fell below 50% 512 | -9/Materials | Core integrity fell below 20% 539 | -9/Materials | Lost 10 parts (2p2n1u5w) 550 | -9/Materials | Destroyed 7 combat bots 636 | -9/Materials | Identified exit to Materials 1213 | -9/Materials | Destroyed by G-34 Mercenary with Small Laser Last Messages --------------- 01074_ R-06 Scavenger collects Heat Sink. 01075_ Acquired Hover Unit. 01093_ Y-45 Defender destroyed. 01096_ K-01 Serf collects debris. 01131_ Y-45 Defender destroyed. 01139_ Acquired Prototype Energy Gun. 01140_ Identified Imp. EM Shotgun. 01140_ Faulty integration triggers energy drain (-276). 01143_ Dropped Faulty Imp. EM Shotgun. 01144_ R-06 Scavenger collects Hvy. Assault Rifle. 01151_ System corrupted: Substantial component data lost. 01154_ R-06 Scavenger collects Faulty Imp. EM Shotgun. 01154_ Acquired 55 matter. 01189_ O-16 Technician: "IFF HANDSHAKE FAILED. SECURING TERMINAL." 01204_ ALERT: Hostiles spotted, dispatching reinforcements to Terminal M009. Map ----- +----------------------------------------------------+ | ?????????######## ########?????# # % # " | | ?????????# ??# #????????????# """ +% # " | | ?????????# """ # #????????????# """ # # " | | ?????????# """ + #????????????# """ # # | | ?????????# """ # #????????????# # # " | | ?????????# ??# #????????????# # # " | | ?????????# ????# #????????????# # # " | | ?????????#??????# #????????????# # # | | ????????????????# #????????????####### # " | | ?????????#??????# ######?????????????# # " | | ?????????#""????# ## #?????????????# # " | | ?????????#""" ??# ## #?????????????# + | | ?????????# # ## #?????????????# ### | | ?????????# + k## #?????????????# # | | ?????????######## ## ############### # | | ????????????????# ## # # # # | | ????????????????# ## # # # + | | ????????????????# ####+# # # # | | ????????????????+ + """# """ # # | | ????????????????# # """# """ # ### | | ????????????????# # """# """ +^^ #?? | | ????????????????# # # # #?# | | ????????????????# + """# # #?# | | ????????????????# # """#"" # #?# | | ????????????????# # """#"T # ### | | ????????????????# @!!]# #"" *# + | | ????????????????# !!]######### # ### | | ????????????????# !!]# # ##### # # | | ????????????????+ # ###?### ### | | ??????????????? # # """"" #???### % | | ??????????????? # g"Y" # """"" #????##* / | | ?????????????? ?# """g # """"" #????##=% *[ | | ?????????????? ?# + """"" #???### =[%# | | ?????????????#??# # """"" #???# ===# | | ????????????????# < ###### """"" #???# =# | | ????????????????# #????# """"" #???# # | | ????????????????##??#????# #???######## | | ?????????????????????????# #??????????# | | ?????????????????????????#########??????????# | | ????????????????????????????????????????????## | | ?????????????????????????????????????????????? | | ?????????????????????????????????????????????? | | ?????????????????????????????????????????????? | | ?????????????????????????????????????????????? | | ?????????????????????????????????????????????? | | | | | | | | | | | +----------------------------------------------------+ Best States ------------- Heat Dissipation 28 Energy Generation 19 Energy Capacity 430 Matter Stores 300 Matter Capacity 300 Sight Range 16 Terrain Scan Density 10 Armor Coverage 150 Resistance: KI 20 Resistance: TH 20 Resistance: EX 20 Resistance: EM 20 Resistance: I 20 Resistance: S 20 Resistance: P 20 Evasion (%) 55 Melee Accuracy 5 Recoil Reduction 2 Offensive Hacking 10 Item Schematics ----------------- None Robot Schematics ------------------ None Fabricated ------------ Nothing Alien Tech Used ----------------- None Achievements -------------- None Challenges ------------ None Game ------ Seed ArcImpactScanner Manual? 0 Play Time 00:19:36 Cumulative 55.9 hours Start 2024.04.22 @ 16:54:11 End 2024.04.22 @ 17:13:15 Sessions 1 Manual Loads 0 Difficulty Adventurer Special Mode None Game No. 75 Rogue 12 Adventurer 21 Explorer 42 Win Type - Total 4 Types 4/0/0/0/0/0/0/0/0 Lore% 28 Gallery% 42 Achievement% 37 Wizard Run 0 Options --------- Layout 1 ASCII 0 Keyboard 0 Movement Numpad Keybinds 0 Fullscreen 1 Font 16/SmallcapsGlow Map View 55x38 Zoom Use 0% Tactical HUD 1 Map Filters NONE Filters NONE Steam 1 RUN: c8440866-8785-474f-8510-a38b319bde85